fUSD/lending_fUSD_20260116
["ID","MTS","AMOUNT","RATE_DAILY","PERIOD"]
[402205721,1768599509763,-665.23614164,0.00013976,2]
[402205722,1768599513989,-322.71582234,0.00013976,2]
[402205723,1768599516420,-232.09640326,0.00013976,2]
[402205724,1768599518811,-231.48647863,0.00013976,2]
[402205725,1768599520350,-188.22892037,0.00013976,2]
[402205726,1768599521986,200.0,0.00013388,2]
[402205727,1768599522019,-221.11452198,0.00013976,2]
[402205728,1768599524506,-261.54285605,0.00013976,2]
[402205729,1768599526800,-200.32500541,0.00013976,2]
[402205730,1768599528465,-210.71644318,0.00013976,2]
[402205731,1768599530816,-264.87733376,0.00013976,2]
[402205732,1768599533796,-163.99097733,0.00013976,2]
[402205733,1768599535586,-530.6866437,0.00013976,2]
[402205734,1768599535621,-49.75293994,0.00013978,2]
[402205735,1768599538650,-209.075767,0.00013905,2]
[402205736,1768599538680,-35.924233,0.00013978,2]
[402205737,1768599542291,-204.7351323,0.00013978,2]
[402205738,1768599543992,-553.21704651,0.00013978,2]
[402205739,1768599550097,-152.06497503,0.00013976,2]
[402205740,1768599550119,-127.80244857,0.00013978,2]
[402205741,1768599552083,-158.76394628,0.00013978,2]
[402205742,1768599553760,-171.71190336,0.00013978,2]
[402205743,1768599557366,-415.32326885,0.00013978,2]
[402205744,1768599560069,-396.53446097,0.00013978,2]
[402205745,1768599562038,-166.46688855,0.00013978,2]
[402205746,1768599564491,-210.72559273,0.00013978,2]
[402205747,1768599569163,-9.04213894,0.00013978,2]
[402205748,1768599569188,-195.0,0.00013978,2]
[402205749,1768599569212,-116.24919179,0.00013979,2]
[402205750,1768599572598,-163.39236788,0.00013979,2]
[402205751,1768599575873,-62.90405731,0.00013979,2]
[402205752,1768599575898,-258.16688567,0.00013979,2]
[402205753,1768599578054,-41.83311433,0.00013979,2]
[402205754,1768599578075,-150.0,0.00013979,2]
[402205755,1768599578096,-84.48288681,0.00013979,2]
[402205756,1768599580220,-215.51711319,0.00013979,2]
[402205757,1768599580242,-75.25588442,0.0001398,2]
[402205758,1768599582856,-253.15261541,0.0001398,2]
[402205759,1768599584860,-300.0,0.0001398,2]
[402205760,1768599588905,-192.71582831,0.0001398,2]
[402205761,1768599590768,-195.0,0.0001398,2]
[402205762,1768599593567,-426.1348037,0.0001398,2]
[402205763,1768599596123,-518.52371036,0.0001398,2]
[402205764,1768599598229,-365.82908401,0.0001398,2]
[402205765,1768599599952,-173.38807379,0.0001398,2]
[402205766,1768599599975,-101.4133627,0.0001398,2]
[402205767,1768599602444,-290.46004957,0.00013979,2]
[402205768,1768599604824,-9.53995043,0.00013979,2]
[402205769,1768599604847,-267.46004957,0.00013979,2]
[402205770,1768599607788,-32.53995043,0.00013979,2]
[402205771,1768599607814,-127.8166408,0.00013979,2]
[402205772,1768599612428,-247.64589288,0.00013979,2]
[402205773,1768599614903,-250.0,0.00013979,2]
[402205774,1768599618224,-226.12903702,0.00013979,2]
[402205775,1768599620652,-343.85765004,0.00013979,2]
[402205776,1768599623043,-4.55077926,0.00013979,2]
[402205777,1768599623065,-195.0,0.00013979,2]
[402205778,1768599623088,-126.58402444,0.0001398,2]
[402205779,1768599626371,-303.20627472,0.0001398,2]
[402205780,1768599629864,-161.52490648,0.0001398,2]
[402205781,1768599629887,-138.47509352,0.0001398,2]
[402205782,1768599631718,-56.52490648,0.0001398,2]
[402205783,1768599631745,-164.0,0.0001398,2]
[402205784,1768599631767,-66.92470724,0.0001398,2]
[402205785,1768599634102,-198.07529276,0.0001398,2]
[402205786,1768599634130,-409.12271798,0.0001398,2]
[402205787,1768599637249,-90.87728202,0.0001398,2]
[402205788,1768599637276,-102.99321914,0.0001398,2]
[402205789,1768599639847,-397.00678086,0.0001398,2]
[402205790,1768599639874,-17.16871467,0.0001398,2]
[402205791,1768599642779,-302.39860496,0.0001398,2]
[402205792,1768599644475,-180.43268037,0.0001398,2]
[402205793,1768599644502,-100.94682172,0.0001398,2]
[402205794,1768599646401,-166.64583723,0.0001398,2]
[402205795,1768599648247,-232.40734105,0.0001398,2]
[402205796,1768599648274,-61.98145013,0.0001398,2]
[402205797,1768599650897,-183.5868135,0.0001398,2]
[402205798,1768599650925,-70.17759193,0.0001398,2]
[402205799,1768599654987,-384.1489813,0.0001398,2]
[402205800,1768599657076,-45.67342677,0.0001398,2]
[402205801,1768599657408,-167.77898697,0.0001398,2]
[402205802,1768599658612,-332.22101303,0.0001398,2]
[402205803,1768599658639,-44.18269141,0.0001398,2]
[402205804,1768599662613,-274.76701349,0.00013979,2]
[402205805,1768599666095,-25.23298651,0.00013979,2]
[402205806,1768599666128,-169.76701349,0.0001398,2]
[402205807,1768599670474,-215.70872266,0.0001388,2]
[402205808,1768599670517,-89.90248616,0.0001398,2]
[402205809,1768599673903,-215.70872266,0.00013881,2]
[402205810,1768599673932,-113.43185769,0.0001398,2]
[402205811,1768599676445,-82.71595125,0.0001398,2]
[402205812,1768599676472,-146.71969615,0.0001398,2]
[402205813,1768599678530,-353.28030385,0.0001398,2]
[402205814,1768599678556,-51.73008997,0.0001398,2]
[402205815,1768599680831,-187.12878608,0.0001398,2]
[402205816,1768599685491,-261.14112395,0.0001398,2]
[402205817,1768599685519,-12.72887014,0.0001398,2]
[402205818,1768599687083,-391.9355504,0.0001398,2]
[402205819,1768599689394,-95.33557946,0.0001398,2]
[402205820,1768599689429,-197.5539178,0.0001398,2]
[402205821,1768599692380,-302.4460822,0.0001398,2]
[402205822,1768599692407,-235.89538252,0.0001398,2]
[402205823,1768599696622,-165.46142959,0.00013799,2]
[402205824,1768599699543,-168.76903802,0.00013799,2]
[402205825,1768599701892,-250.0,0.00013799,2]
[402205826,1768599705050,-195.98,0.00013799,2]
[402205827,1768599706589,-300.0,0.00013799,2]
[402205828,1768599708715,-328.01806371,0.00013799,2]
[402205829,1768599711258,-216.56969934,0.00013799,2]
[402205830,1768599714943,-264.70766812,0.00013799,2]
[402205831,1768599718126,-269.40144431,0.00013799,2]
[402205832,1768599720875,-361.45476909,0.00013799,2]
[402205833,1768599724591,-252.77731869,0.00013799,2]
[402205834,1768599726668,-178.10353163,0.00013799,2]
[402205835,1768599729896,-152.41425195,0.00013799,2]
[402205836,1768599734380,-162.41690171,0.00013799,2]
[402205837,1768599736723,-198.82288384,0.00013799,2]
[402205838,1768599736746,-242.026,0.00013799,2]
[402205839,1768599736769,-6.73686421,0.0001389,2]
[402205840,1768599741280,-214.00115306,0.0001389,2]
[402205841,1768599744393,-29.26198273,0.0001389,2]
[402205842,1768599744664,-250.0,0.00013944,2]
[402205843,1768599744687,-5.41099924,0.0001398,2]
[402205844,1768599746253,-294.58900076,0.0001398,2]
[402205845,1768599746275,-137.84777695,0.0001398,2]
[402205846,1768599749493,-12.15222305,0.0001398,2]
[402205847,1768599749513,-300.0,0.0001398,2]
[402205848,1768599749540,-12.21489098,0.0001398,2]
[402205849,1768599752327,-251.8897265,0.0001398,2]
[402205850,1768599752355,-34.75220487,0.0001398,2]
[402205851,1768599754431,-213.38204177,0.0001398,2]
[402205852,1768599758899,-251.86575336,0.0001398,2]
[402205853,1768599758933,-195.19231095,0.0001398,2]
[402205854,1768599764605,-206.31,0.00013842,2]
[402205855,1768599764628,-59.3712394,0.0001398,2]
[402205856,1768599766566,-38.32594691,0.0001398,2]
[402205857,1768599766587,-213.01347562,0.0001398,2]
[402205858,1768599766609,-46.74474679,0.00013981,2]
[402205859,1768599768652,-265.65375261,0.00013981,2]
[402205860,1768599772734,-302.0,0.00013981,2]
[402205861,1768599774575,-209.47951929,0.00013981,2]
[402205862,1768599778325,-282.87701377,0.00013981,2]
[402205863,1768599786082,-280.91058091,0.00013981,2]
[402205864,1768599792078,-257.6043874,0.00013981,2]
[402205865,1768599797695,-291.75089104,0.0001398,2]
[402205866,1768599800818,-278.87368488,0.0001398,2]
[402205867,1768599806082,-301.44438854,0.0001398,2]
[402205868,1768599808866,-273.34186132,0.0001398,2]
[402205869,1768599812371,-54.58917422,0.0001398,2]
[402205870,1768599812394,-231.01348689,0.00013981,2]
[402205871,1768599815515,-201.64389988,0.00013981,2]
[402205872,1768599817755,-290.48996012,0.00013981,2]
[402205873,1768599821293,-279.24068855,0.00013981,2]
[402205874,1768599824876,-176.59405375,0.00013981,2]
[402205875,1768599977507,1402.74667424,0.00015029,30]
[402205876,1768599978257,2474.61140623,0.00015529,30]
[402205877,1768599978959,3701.87066693,0.00015529,30]
[402205878,1768599979691,5008.7565,0.00015529,30]
[402205879,1768599988107,1600.0,0.0001329,2]
[402205880,1768600029740,1100.0,0.000138,5]
[402205881,1768600031840,2300.0,0.000139,5]
[402205882,1768600033550,4092.94,6.663e-05,2]
[402205883,1768600033788,4092.94,7.013e-05,2]
[402205884,1768600034000,214.13,7.364e-05,2]
[402205885,1768600034024,3878.81,7.364e-05,2]
[402205886,1768600034219,4092.94,7.715e-05,2]
[402205887,1768600034696,2028.26,8.065e-05,2]
[402205888,1768600034726,2064.68,8.065e-05,2]
[402205889,1768600034805,4092.94,8.416e-05,2]
[402205890,1768600034885,3842.39,8.767e-05,2]
[402205891,1768600034909,250.55,8.767e-05,2]
[402205892,1768600035216,4092.94,9.117e-05,2]
[402205893,1768600035445,4092.94,9.468e-05,2]
[402205894,1768600035642,1563.58,9.819e-05,2]
[402205895,1768600035665,2529.36,9.819e-05,2]
[402205896,1768600035870,300.98183784,0.00010169,2]
[402205897,1768600035895,3791.95816216,0.00010169,2]
[402205898,1768600036096,3678.69183784,0.0001052,2]
[402205899,1768600036120,414.24816216,0.0001052,2]
[402205900,1768600036327,4092.94,0.00010871,2]
[402205901,1768600036501,4092.94,0.00011221,2]
[402205902,1768600036709,1399.88183784,0.00011572,2]
[402205903,1768600036733,2693.05816216,0.00011572,2]
[402205904,1768600037020,4092.94,0.00011923,2]
[402205905,1768600037257,235.01597369,0.00012273,2]
[402205906,1768600037281,3214.01183784,0.00012273,2]
[402205907,1768600037303,643.91218847,0.00012273,2]
[402205908,1768600037488,4092.94,0.00012624,2]
[402205909,1768600038101,4092.94,0.00012975,2]
[402205910,1768600038266,1170.21781153,0.00013325,2]
[402205911,1768600038289,2922.72218847,0.00013325,2]
[402205912,1768600070590,800.0,0.000138,5]
[402205913,1768600072679,1700.0,0.000139,5]
[402205914,1768600107553,324.0,0.00013213,2]
[402205915,1768600127466,500.0,0.00013213,2]
[402205916,1768600129012,-500.0,0.0001397,2]
[402205917,1768600129050,-500.0,0.0001397,2]
[402205918,1768600129087,-467.68780184,0.0001397,2]
[402205919,1768600129119,-150.0,0.0001397,2]
[402205920,1768600129152,-300.0,0.0001397,2]
[402205921,1768600129183,-250.0,0.0001397,2]
[402205922,1768600129216,-195.0,0.0001397,2]
[402205923,1768600129250,-1300.57489632,0.00013971,2]
[402205924,1768600131947,-2673.48460368,0.00013971,2]
[402205925,1768600131979,-2169.07339264,0.00013971,2]
[402205926,1768600138138,-314.89400736,0.00013971,2]
[402205927,1768600183132,-1600.87315812,0.00013956,2]
[402205928,1768600185536,-4763.79209161,0.00013971,2]
[402205929,1768600188716,-10000.01,0.00013971,2]
[402205930,1768600192084,-10000.01,0.00013971,2]
[402205931,1768600198416,-10000.01,0.00013971,2]
[402205932,1768600209055,-151.66622044,0.00013871,2]
[402205933,1768600213425,-249.92279193,0.00013871,2]
[402205934,1768600217055,-227.68167756,0.00013871,2]
[402205935,1768600219618,-162.14755588,0.00013871,2]
[402205936,1768600221516,-164.01221423,0.00013871,2]
[402205937,1768600224126,-267.66268331,0.00013871,2]
[402205938,1768600225608,-152.68088658,0.00013871,2]
[402205939,1768600228247,-601.60414997,0.00013871,2]
[402205940,1768600229781,-215.14510851,0.00013871,2]
[402205941,1768600231654,-394.45008645,0.00013871,2]
[402205942,1768600231665,-286.96095259,0.00013871,2]
[402205943,1768600231677,-9123.7316167,0.00013871,2]
[402205944,1768600231711,-775796.70570891,0.00013871,2]
[402205945,1768600231723,-11355.00599198,0.00013871,2]
[402205946,1768600231733,-52538.96661753,0.00013871,2]
[402205947,1768600231745,-136905.13762384,0.00013871,2]
[402205948,1768600231800,-536.26602,0.00013871,2]
[402206000,1768600232156,-448.84633014,0.00013871,2]
[402206068,1768600235356,-207.16504362,0.00013871,2]
[402206082,1768600237672,-317.88585705,0.0001387,2]
[402206085,1768600237694,-182.11414295,0.0001387,2]
[402206087,1768600237708,-303.018072,0.0001387,2]
[402206088,1768600237721,-500.0,0.0001387,2]
[402206089,1768600237733,-171.99586024,0.0001387,2]
[402206090,1768600237747,-245.72146946,0.0001387,2]
[402206091,1768600237759,-500.0,0.0001387,2]
[402206092,1768600237775,-800.15044358,0.00013871,2]
[402206093,1768600237851,-9414.09027625,0.00013871,2]
[402206094,1768600237865,-300.0,0.0001397,2]
[402206095,1768600237879,-1200.0,0.0001397,2]
[402206096,1768600237892,-265.0,0.0001397,2]
[402206097,1768600237906,-23449.00870839,0.00013971,2]
[402206098,1768600237920,-236.7828,0.00013971,2]
[402206099,1768600237934,-892.44582311,0.00013973,2]
[402206100,1768600237947,-250.0,0.00013974,2]
[402206101,1768600237962,-302.04912456,0.00013981,2]
[402206102,1768600237975,-3734.10182349,0.00013981,2]
[402206103,1768600237988,-200.0,0.00013981,2]
[402206104,1768600238002,-211.81856156,0.00013981,2]
[402206105,1768600238015,-2500.0,0.00013981,2]
[402206106,1768600238029,-531.54159319,0.00014029,2]
[402206107,1768600238053,-151.0,0.00014068,2]
[402206108,1768600238068,-96876.56188686,0.00014071,2]
[402206109,1768600238081,-850.21314504,0.00014071,2]
[402206110,1768600238094,-200.0,0.00014073,2]
[402206111,1768600238107,-151.0,0.00014073,2]
[402206112,1768600238121,-151.0,0.00014073,2]
[402206113,1768600238135,-151.0,0.00014073,2]
[402206114,1768600238149,-151.0,0.00014073,2]
[402206115,1768600238165,-151.0,0.00014073,2]
[402206116,1768600238179,-151.0,0.00014073,2]
[402206117,1768600238193,-500.0,0.00014073,2]
[402206118,1768600238207,-151.0,0.00014073,2]
[402206119,1768600238222,-500.0,0.00014073,2]
[402206120,1768600238235,-151.0,0.00014073,2]
[402206121,1768600238249,-500.0,0.00014073,2]
[402206122,1768600238262,-151.0,0.00014073,2]
[402206123,1768600238275,-500.0,0.00014073,2]
[402206124,1768600238288,-151.0,0.00014073,2]
[402206125,1768600238301,-200.0,0.00014073,2]
[402206126,1768600238313,-500.0,0.00014073,2]
[402206127,1768600238327,-151.0,0.00014073,2]
[402206128,1768600238339,-520.74832924,0.00014073,2]
[402206130,1768600238351,-200.0,0.00014073,2]
[402206132,1768600238365,-151.0,0.00014073,2]
[402206135,1768600238379,-500.0,0.00014073,2]
[402206137,1768600238395,-151.0,0.00014073,2]
[402206139,1768600238412,-151.0,0.00014073,2]
[402206140,1768600238425,-151.0,0.00014073,2]
[402206143,1768600238435,-151.0,0.00014073,2]
[402206145,1768600238446,-151.0,0.00014073,2]
[402206147,1768600238456,-151.0,0.00014073,2]
[402206148,1768600238465,-151.0,0.00014073,2]
[402206151,1768600238475,-151.0,0.00014073,2]
[402206153,1768600238484,-151.0,0.00014073,2]
[402206154,1768600238493,-151.0,0.00014073,2]
[402206155,1768600238502,-151.0,0.00014073,2]
[402206157,1768600238511,-151.0,0.00014073,2]
[402206159,1768600238521,-151.0,0.00014073,2]
[402206161,1768600238530,-151.0,0.00014073,2]
[402206165,1768600238938,-151.0,0.00014073,2]
[402206166,1768600238966,-151.0,0.00014073,2]
[402206167,1768600238978,-151.0,0.00014073,2]
[402206168,1768600238987,-151.0,0.00014073,2]
[402206169,1768600238997,-500.0,0.00014073,2]
[402206170,1768600239007,-154.10332581,0.00014073,2]
[402206171,1768600239017,-500.0,0.00014073,2]
[402206172,1768600239027,-500.0,0.00014073,2]
[402206173,1768600239037,-388.25037086,0.00014073,2]
[402206174,1768600239047,-559.92,0.00014073,2]
[402206175,1768600239057,-150.0,0.0001408,2]
[402206176,1768600239067,-150.0,0.0001408,2]
[402206177,1768600239077,-407.31203624,0.0001408,2]
[402206178,1768600239086,-500.0,0.0001408,2]
[402206179,1768600239096,-500.0,0.0001408,2]
[402206180,1768600239105,-500.0,0.0001408,2]
[402206181,1768600239114,-500.0,0.0001408,2]
[402206182,1768600239124,-500.0,0.0001408,2]
[402206183,1768600239133,-500.0,0.0001408,2]
[402206184,1768600239143,-500.0,0.0001408,2]
[402206185,1768600239153,-500.0,0.0001408,2]
[402206186,1768600239164,-500.0,0.0001408,2]
[402206187,1768600239173,-500.0,0.0001408,2]
[402206188,1768600239183,-500.0,0.0001408,2]
[402206189,1768600239192,-500.0,0.0001408,2]
[402206190,1768600239202,-500.0,0.0001408,2]
[402206191,1768600239211,-503.02366954,0.0001408,2]
[402206192,1768600239220,-500.0,0.0001408,2]
[402206193,1768600239231,-506.16656929,0.0001408,2]
[402206194,1768600239241,-500.0,0.0001408,2]
[402206195,1768600239251,-500.0,0.0001408,2]
[402206196,1768600239261,-500.0,0.0001408,2]
[402206197,1768600239274,-500.0,0.0001408,2]
[402206198,1768600239289,-500.0,0.0001408,2]
[402206199,1768600239298,-500.0,0.0001408,2]
[402206200,1768600239307,-500.0,0.0001408,2]
[402206201,1768600239316,-500.0,0.0001408,2]
[402206202,1768600239325,-500.0,0.0001408,2]
[402206203,1768600239334,-500.0,0.0001408,2]
[402206204,1768600239343,-500.0,0.0001408,2]
[402206205,1768600239352,-500.0,0.0001408,2]
[402206206,1768600239362,-500.0,0.00014081,2]
[402206207,1768600239371,-24953.51099059,0.00014081,2]
[402206210,1768600239839,-8259.48620941,0.00014081,2]
[402206211,1768600239848,-1000.0,0.00014081,2]
[402206212,1768600239858,-500.0,0.00014081,2]
[402206213,1768600239867,-200.0,0.00014121,2]
[402206214,1768600239876,-500.0,0.0001418,2]
[402206215,1768600239886,-500.0,0.0001418,2]
[402206216,1768600239895,-500.0,0.0001418,2]
[402206217,1768600239904,-394.25300097,0.0001418,2]
[402206218,1768600239975,-105.74699903,0.0001418,2]
[402206219,1768600239984,-434.18851099,0.0001418,2]
[402206245,1768600240452,-621.06973771,0.0001387,2]
[402206247,1768600240461,-2500.0,0.0001398,2]
[402206248,1768600240471,-66.95530609,0.0001418,2]
[402206249,1768600240480,-500.0,0.0001418,2]
[402206250,1768600240490,-500.0,0.0001418,2]
[402206251,1768600240500,-580.7623026,0.0001418,2]
[402206252,1768600240510,-500.0,0.00014194,2]
[402206253,1768600240519,-500.0,0.00014194,2]
[402206254,1768600240529,-500.0,0.00014194,2]
[402206255,1768600240538,-500.0,0.00014194,2]
[402206256,1768600240548,-2237.7497683,0.00014195,2]
[402206257,1768600242387,-1.7e-07,0.00014195,2]
[402206258,1768600242398,-324.7149346,0.00014195,2]
[402206259,1768600242435,-550.28417505,0.00014195,2]
[402206260,1768600242447,-844.94856215,0.00014195,2]
[402206261,1768600242479,-1723.07381486,0.00014195,2]
[402206262,1768600242508,-354367.80230357,0.00014195,2]
[402206263,1768600242517,-159919.93,0.00014247,2]
[402206264,1768600242526,-200.0,0.00014262,2]
[402206265,1768600242535,-428.69,0.00014284,2]
[402206266,1768600242545,-923.71300875,0.00014299,2]
[402206267,1768600242554,-500.0,0.00014299,2]
[402206268,1768600242563,-604.54147957,0.00014299,2]
[402206269,1768600242573,-30932.74524186,0.000143,2]
[402206270,1768600242582,-559.92,0.00014347,2]
[402206271,1768600242591,-500.0,0.0001438,2]
[402206272,1768600242600,-500.0,0.0001438,2]
[402206273,1768600242609,-500.0,0.0001438,2]
[402206274,1768600242618,-285.96192003,0.0001438,2]
[402206275,1768600242629,-200.0,0.00014405,2]
[402206276,1768600242638,-3734.10182344,0.00014416,2]
[402206277,1768600242647,-200.0,0.00014549,2]
[402206278,1768600242657,-200.0,0.00014621,2]
[402206279,1768600242666,-200.0,0.00014621,2]
[402206280,1768600242675,-500.0,0.00014621,2]
[402206281,1768600242684,-559.92,0.00014621,2]
[402206282,1768600242694,-302.04912452,0.00014634,2]
[402206283,1768600242703,-6479.52,0.00014648,2]
[402206284,1768600242711,-3734.10182344,0.00014852,2]
[402206286,1768600242720,-559.92,0.00014895,2]
[402206287,1768600242730,-3500.0,0.000149,5]
[402206288,1768600242739,-2600.0,0.000149,5]
[402206289,1768600242748,-1600.0,0.00014951,2]
[402206290,1768600242757,-151.0,0.00014995,2]
[402206291,1768600242766,-151.0,0.00014995,2]
[402206292,1768600242775,-151.0,0.00014995,2]
[402206293,1768600242784,-151.0,0.00014995,2]
[402206294,1768600242793,-151.0,0.00015001,2]
[402206295,1768600242805,-151.0,0.00015001,2]
[402206296,1768600242815,-428.69,0.00015036,2]
[402206297,1768600242824,-579.67,0.00015068,2]
[402206298,1768600242834,-255.0,0.00015088,2]
[402206299,1768600242843,-559.92,0.00015168,2]
[402206300,1768600242851,-201.84989659,0.00015169,2]
[402206301,1768600242860,-205.06792171,0.00015169,2]
[402206302,1768600242870,-500.0,0.00015169,2]
[402206303,1768600242878,-29127.46,0.00015195,2]
[402206304,1768600242888,-302.04912452,0.00015287,2]
[402206305,1768600242897,-3734.10182344,0.00015287,2]
[402206306,1768600242907,-151.0,0.00015305,2]
[402206307,1768600242916,-152.0,0.00015305,2]
[402206308,1768600242925,-420.0,0.00015305,2]
[402206309,1768600242934,-195.0,0.00015367,2]
[402206310,1768600242943,-193.55917639,0.00015367,2]
[402206311,1768600242953,-483.48036625,0.00015367,2]
[402206312,1768600242965,-508.9942,0.00015367,2]
[402206313,1768600242975,-195.0,0.00015367,2]
[402206314,1768600242984,-250.0,0.00015367,2]
[402206315,1768600242993,-1680.0,0.00015367,2]
[402206316,1768600243003,-300.0,0.00015368,2]
[402206317,1768600243012,-1521.3119287,0.00015368,2]
[402206318,1768600243022,-300.0,0.00015368,2]
[402206319,1768600243031,-195.0,0.00015368,2]
[402206320,1768600243041,-2500.0,0.00015368,2]
[402206321,1768600243050,-418.50928406,0.00015368,2]
[402206322,1768600243060,-195.0,0.00015368,2]
[402206323,1768600243069,-250.0,0.00015368,2]
[402206324,1768600243079,-559.95,0.00015442,2]
[402206325,1768600243089,-436.43,0.0001547,2]
[402206326,1768600243099,-200.0,0.00015529,2]
[402206327,1768600243109,-57712.0,0.000156,2]
[402206328,1768600243118,-200.0,0.00015684,2]
[402206329,1768600243128,-500.0,0.00015717,2]
[402206330,1768600243137,-3734.10182344,0.00015723,2]
[402206331,1768600243147,-5660.67790399,0.00015723,2]
[402206332,1768600243157,-428.69,0.00015788,2]
[402206333,1768600243166,-200.0,0.00015841,2]
[402206334,1768600243176,-1000.0,0.00015918,2]
[402206335,1768600243185,-302.04912452,0.00015941,2]
[402206336,1768600243195,-200.0,0.00016,2]
[402206337,1768600243204,-5533.0,0.00016,3]
[402206338,1768600243213,-200.0,0.00016029,2]
[402206339,1768600243223,-228.54010162,0.00016148,2]
[402206340,1768600243232,-3734.10182344,0.00016158,2]
[402206341,1768600243241,-5660.67790399,0.00016158,2]
[402206342,1768600243251,-200.0,0.0001616,2]
[402206343,1768600243260,-387.20096173,0.00016165,2]
[402206344,1768600243269,-30478.0,0.00016192,2]
[402206345,1768600243278,-2000.0,0.00016199,2]
[402206346,1768600243287,-2000.0,0.00016199,2]
[402206347,1768600243296,-2000.0,0.00016199,2]
[402206348,1768600243305,-2000.0,0.00016199,2]
[402206349,1768600243314,-2000.0,0.00016199,2]
[402206350,1768600243323,-2000.0,0.00016199,2]
[402206351,1768600243332,-151.0,0.00016219,2]
[402206352,1768600243341,-150.0,0.0001622,2]
[402206353,1768600243350,-360048.5735587,0.00016222,2]
[402206354,1768600243359,-1000.0,0.00016252,2]
[402206355,1768600243368,-1000.0,0.00016252,2]
[402206356,1768600243378,-500.0,0.00016265,2]
[402206357,1768600243388,-433.0,0.00016289,2]
[402206358,1768600243397,-5533.0,0.000163,5]
[402206359,1768600243407,-1500.0,0.00016356,2]
[402206360,1768600243416,-500.0,0.00016356,2]
[402206361,1768600243425,-600.0,0.00016356,2]
[402206362,1768600243435,-579.67,0.00016438,2]
[402206363,1768600243444,-620.0,0.00016449,2]
[402206364,1768600243453,-9000.0,0.00016449,2]
[402206365,1768600243462,-9000.0,0.00016449,2]
[402206366,1768600243471,-9000.0,0.00016449,2]
[402206367,1768600243480,-9000.0,0.00016449,2]
[402206368,1768600243489,-9000.0,0.00016449,2]
[402206369,1768600243498,-9000.0,0.00016449,2]
[402206370,1768600243507,-9000.0,0.00016449,2]
[402206371,1768600243517,-9000.0,0.00016449,2]
[402206372,1768600243526,-9000.0,0.00016449,2]
[402206373,1768600243535,-174.61919141,0.00016449,2]
[402206374,1768600243545,-500.0,0.00016449,2]
[402206375,1768600243554,-9000.0,0.00016449,2]
[402206376,1768600243563,-500.0,0.00016449,2]
[402206377,1768600243572,-500.0,0.00016449,2]
[402206378,1768600243581,-500.0,0.00016449,2]
[402206379,1768600243591,-500.0,0.00016449,2]
[402206380,1768600243600,-3000.0,0.00016449,2]
[402206381,1768600243610,-500.0,0.00016449,2]
[402206382,1768600243619,-1000.0,0.00016449,2]
[402206383,1768600243628,-500.0,0.00016449,2]
[402206384,1768600243637,-3000.0,0.00016449,2]
[402206385,1768600243647,-500.0,0.00016449,2]
[402206386,1768600243656,-3000.0,0.00016449,2]
[402206387,1768600243666,-500.0,0.00016449,2]
[402206388,1768600243675,-500.0,0.00016449,2]
[402206389,1768600243684,-500.0,0.00016449,2]
[402206390,1768600243694,-500.0,0.00016449,2]
[402206391,1768600243703,-578.20924308,0.00016449,2]
[402206392,1768600243712,-574.12855637,0.00016449,2]
[402206393,1768600243721,-1239.0,0.00016449,2]
[402206394,1768600243730,-322.6107,0.00016449,2]
[402206395,1768600243740,-721.12765535,0.00016449,2]
[402206396,1768600243750,-250.0,0.00016449,2]
[402206397,1768600243759,-250.0,0.00016449,2]
[402206398,1768600243768,-250.0,0.00016449,2]
[402206399,1768600243778,-2000.0,0.00016449,2]
[402206400,1768600243789,-2000.0,0.00016449,2]
[402206401,1768600243799,-2000.0,0.00016449,2]
[402206402,1768600243808,-1000.0,0.00016449,2]